[Event "Open NK Rapid 2025"]
[Site "Helmond, Netherlands"]
[Date "2025.05.03"]
[Round "3.24"]
[White "Nies, Levi"]
[Black "Taams, Lisanne"]
[Result "0-1"]
[TimeControl "15+5"]
[WhiteFideId "1061275"]
[BlackFideId "1055852"]
[WhiteElo "1828"]
[BlackElo "2078"]

1. e4 {[%clk 00:14:31]} {[%emt 00:00:39]} e6 {[%clk 00:15:03]} {[%emt
00:00:08]} 2. e5 {[%clk 00:14:31]} {[%emt 00:00:04]} d5 {[%clk 00:15:03]}
{[%emt 00:00:04]} 3. exd6 {[%clk 00:14:35]} {[%emt 00:00:01]} cxd6 {[%clk
00:14:39]} {[%emt 00:00:29]} 4. d4 {[%clk 00:14:39]} {[%emt 00:00:01]} Nf6
{[%clk 00:14:34]} {[%emt 00:00:10]} 5. Nf3 {[%clk 00:14:42]} {[%emt 00:00:03]}
Be7 {[%clk 00:14:37]} {[%emt 00:00:01]} 6. Bd3 {[%clk 00:14:41]} {[%emt
00:00:06]} b6 {[%clk 00:14:32]} {[%emt 00:00:10]} 7. c3 {[%clk 00:14:26]}
{[%emt 00:00:20]} Bb7 {[%clk 00:14:32]} {[%emt 00:00:05]} 8. Bf4 {[%clk
00:14:21]} {[%emt 00:00:11]} Nbd7 {[%clk 00:13:59]} {[%emt 00:00:38]} 9. Nbd2
{[%clk 00:14:20]} {[%emt 00:00:05]} Rc8 {[%clk 00:13:42]} {[%emt 00:00:22]} 10.
Qe2 {[%clk 00:14:06]} {[%emt 00:00:19]} Nd5 {[%clk 00:13:29]} {[%emt 00:00:19]}
11. Bg3 {[%clk 00:13:55]} {[%emt 00:00:16]} N7f6 {[%clk 00:13:22]} {[%emt
00:00:12]} 12. Ne4 {[%clk 00:13:42]} {[%emt 00:00:18]} Qd7 {[%clk 00:12:56]}
{[%emt 00:00:31]} 13. a4 {[%clk 00:12:36]} {[%emt 00:01:12]} O-O {[%clk
00:11:21]} {[%emt 00:01:40]} 14. O-O {[%clk 00:08:04]} {[%emt 00:04:36]} Nh5
{[%clk 00:10:32]} {[%emt 00:00:53]} 15. Nfg5 {[%clk 00:05:26]} {[%emt
00:02:43]} Nhf4 {[%clk 00:10:25]} {[%emt 00:00:13]} 16. Qd2 {[%clk 00:04:26]}
{[%emt 00:01:05]} Nxd3 {[%clk 00:10:16]} {[%emt 00:00:13]} 17. Qxd3 {[%clk
00:04:27]} {[%emt 00:00:04]} f5 {[%clk 00:10:09]} {[%emt 00:00:12]} 18. a5
{[%clk 00:02:43]} {[%emt 00:01:51]} fxe4 {[%clk 00:09:56]} {[%emt 00:00:17]} 19.
Nxe4 {[%clk 00:02:46]} Qc6 {[%clk 00:07:37]} {[%emt 00:02:24]} 20. f3 {[%clk
00:02:34]} {[%emt 00:00:18]} b5 {[%clk 00:07:33]} {[%emt 00:00:09]} 21. Rfe1
{[%clk 00:02:26]} {[%emt 00:00:13]} Ba6 {[%clk 00:07:19]} {[%emt 00:00:20]} 22.
Nf2 {[%clk 00:01:12]} {[%emt 00:01:18]} Nc7 {[%clk 00:06:34]} {[%emt 00:00:50]}
23. Qe3 {[%clk 00:00:27]} {[%emt 00:00:49]} Rce8 {[%clk 00:06:16]} {[%emt
00:00:23]} 24. Rad1 {[%clk 00:00:24]} {[%emt 00:00:09]} Bf6 {[%clk 00:05:56]}
{[%emt 00:00:24]} 25. Qf4 {[%clk 00:00:18]} {[%emt 00:00:12]} e5 {[%clk
00:05:17]} {[%emt 00:00:44]} 26. dxe5 {[%clk 00:00:09]} {[%emt 00:00:14]} Bxe5
{[%clk 00:05:13]} {[%emt 00:00:08]} 27. Qd2 {[%clk 00:00:07]} {[%emt 00:00:08]}
Bxg3 {[%clk 00:04:52]} {[%emt 00:00:26]} 28. hxg3 {[%clk 00:00:09]} {[%emt
00:00:03]} Rxe1+ {[%clk 00:04:53]} {[%emt 00:00:04]} 29. Rxe1 {[%clk 00:00:13]}
{[%emt 00:00:01]} Re8 {[%clk 00:04:24]} {[%emt 00:00:35]} 30. Rxe8+ {[%clk
00:00:08]} {[%emt 00:00:10]} Nxe8 {[%clk 00:04:26]} {[%emt 00:00:02]} 31. Ne4
{[%clk 00:00:10]} {[%emt 00:00:02]} d5 {[%clk 00:04:19]} {[%emt 00:00:12]} 32.
Ng5 {[%clk 00:00:12]} {[%emt 00:00:04]} h6 {[%clk 00:04:07]} {[%emt 00:00:17]}
33. Nh3 {[%clk 00:00:16]} Nf6 {[%clk 00:04:09]} {[%emt 00:00:03]} 34. Nf4
{[%clk 00:00:19]} {[%emt 00:00:02]} Bc8 {[%clk 00:03:26]} {[%emt 00:00:48]} 35.
Qe3 {[%clk 00:00:19]} {[%emt 00:00:05]} Qc7 {[%clk 00:02:51]} {[%emt 00:00:40]}
36. b4 {[%clk 00:00:12]} {[%emt 00:00:12]} a6 {[%clk 00:02:38]} {[%emt
00:00:18]} 37. Qd4 {[%clk 00:00:07]} {[%emt 00:00:10]} Qd6 {[%clk 00:02:12]}
{[%emt 00:00:30]} 38. Kh2 {[%clk 00:00:11]} {[%emt 00:00:02]} Bf5 {[%clk
00:01:45]} {[%emt 00:00:32]} 39. g4 {[%clk 00:00:12]} {[%emt 00:00:04]} g5
{[%clk 00:01:28]} {[%emt 00:00:21]} 40. g3 {[%clk 00:00:07]} {[%emt 00:00:10]}
gxf4 {[%clk 00:01:23]} {[%emt 00:00:10]} 41. gxf5 {[%clk 00:00:12]} fxg3+
{[%clk 00:01:24]} {[%emt 00:00:05]} 42. Kg2 {[%clk 00:00:15]} {[%emt 00:00:02]}
Qe7 {[%clk 00:00:45]} {[%emt 00:00:43]} 43. Qb6 {[%clk 00:00:12]} {[%emt
00:00:09]} Qe2+ {[%clk 00:00:34]} {[%emt 00:00:15]} 44. Kxg3 {[%clk 00:00:16]}
{[%emt 00:00:02]} Qe1+ {[%clk 00:00:18]} {[%emt 00:00:20]} 45. Kg2 {[%clk
00:00:16]} {[%emt 00:00:05]} Qd2+ {[%clk 00:00:21]} {[%emt 00:00:02]} 46. Kh3
{[%clk 00:00:16]} {[%emt 00:00:04]} Qg5 {[%clk 00:00:07]} {[%emt 00:00:19]} 47.
Qxa6 {[%clk 00:00:20]} {[%emt 00:00:02]} Qxf5+ {[%clk 00:00:09]} {[%emt
00:00:03]} 48. Kg2 {[%clk 00:00:23]} {[%emt 00:00:02]} Qg5+ {[%clk 00:00:12]}
{[%emt 00:00:02]} 49. Kf2 {[%clk 00:00:25]} {[%emt 00:00:03]} Qd2+ {[%clk
00:00:15]} {[%emt 00:00:01]} 50. Kf1 {[%clk 00:00:26]} {[%emt 00:00:05]} Qxc3
{[%clk 00:00:17]} {[%emt 00:00:02]} 51. Qxb5 {[%clk 00:00:13]} {[%emt
00:00:19]} Qxf3+ {[%clk 00:00:19]} {[%emt 00:00:02]} 52. Ke1 {[%clk 00:00:18]}
Qe4+ {[%clk 00:00:17]} {[%emt 00:00:07]} 53. Kd2 {[%clk 00:00:20]} {[%emt
00:00:03]} Qd4+ {[%clk 00:00:17]} {[%emt 00:00:05]} 54. Kc2 {[%clk 00:00:22]}
{[%emt 00:00:03]} Ne4 {[%clk 00:00:14]} {[%emt 00:00:08]} 55. Qe8+ {[%clk
00:00:22]} {[%emt 00:00:05]} Kg7 {[%clk 00:00:18]} {[%emt 00:00:01]} 56. Qd7+
{[%clk 00:00:15]} {[%emt 00:00:12]} Kg6 {[%emt 00:00:03]} 57. Qc6+ {[%clk
00:00:16]} {[%emt 00:00:03]} Nf6 {[%clk 00:00:16]} {[%emt 00:00:10]} 58. a6
{[%emt 00:00:14]} Qxb4 {[%clk 00:00:09]} {[%emt 00:00:12]} 59. a7 {[%clk
00:00:00]} {[%emt 00:00:08]} Qe4+ {[%clk 00:00:12]} 60. Kd2 {[%clk 00:00:00]}
{[%emt 00:00:29]} 0-1

[Event "Open NK Rapid 2025"]
[Site "Helmond, Netherlands"]
[Date "2025.05.03"]
[Round "3.25"]
[White "Becx, Cesar"]
[Black "Rogozyanskiy, Alexander"]
[Result "1/2-1/2"]
[TimeControl "15+5"]
[WhiteFideId "1001183"]
[BlackFideId "1092138"]
[WhiteElo "2075"]
[BlackElo "1726"]

1. f4 {[%clk 00:15:09]} d5 {[%clk 00:15:07]} {[%emt 00:00:03]} 2. Nf3 {[%clk
00:15:12]} {[%emt 00:00:02]} Nf6 {[%clk 00:15:11]} {[%emt 00:00:01]} 3. g3
{[%clk 00:15:15]} {[%emt 00:00:02]} g6 {[%clk 00:15:14]} {[%emt 00:00:01]} 4.
Bg2 {[%clk 00:15:19]} {[%emt 00:00:02]} Bg7 {[%clk 00:15:18]} 5. O-O {[%clk
00:15:22]} {[%emt 00:00:02]} b6 {[%clk 00:15:22]} {[%emt 00:00:02]} 6. d3
{[%clk 00:15:24]} {[%emt 00:00:03]} Bb7 {[%clk 00:15:26]} {[%emt 00:00:01]} 7.
Ne5 {[%clk 00:14:06]} {[%emt 00:01:22]} c5 {[%clk 00:14:51]} {[%emt 00:00:40]}
8. c4 {[%clk 00:14:06]} {[%emt 00:00:06]} Nbd7 {[%clk 00:13:36]} {[%emt
00:01:19]} 9. Nc3 {[%clk 00:13:50]} {[%emt 00:00:21]} O-O {[%clk 00:12:47]}
{[%emt 00:00:54]} 10. Qa4 {[%clk 00:11:21]} {[%emt 00:02:34]} e6 {[%clk
00:10:45]} {[%emt 00:02:07]} 11. Nxd7 {[%clk 00:10:25]} {[%emt 00:01:02]} Qxd7
{[%clk 00:08:32]} {[%emt 00:02:18]} 12. Qxd7 {[%clk 00:10:27]} {[%emt
00:00:02]} Nxd7 {[%clk 00:08:36]} {[%emt 00:00:02]} 13. cxd5 {[%clk 00:10:02]}
{[%emt 00:00:29]} Bxc3 {[%clk 00:08:38]} {[%emt 00:00:03]} 14. bxc3 {[%clk
00:09:49]} {[%emt 00:00:19]} exd5 {[%clk 00:07:44]} {[%emt 00:00:59]} 15. Bd2
{[%clk 00:05:24]} {[%emt 00:04:30]} Rfe8 {[%clk 00:06:29]} {[%emt 00:01:20]} 16.
Rae1 {[%clk 00:05:24]} {[%emt 00:00:05]} Rab8 {[%clk 00:06:15]} {[%emt
00:00:19]} 17. f5 {[%clk 00:04:15]} {[%emt 00:01:14]} d4 {[%clk 00:05:34]}
{[%emt 00:00:45]} 18. Bh3 {[%clk 00:03:29]} {[%emt 00:00:51]} Ne5 {[%clk
00:03:58]} {[%emt 00:01:40]} 19. cxd4 {[%clk 00:03:28]} {[%emt 00:00:07]} cxd4
{[%clk 00:04:02]} 20. Rc1 {[%clk 00:03:09]} {[%emt 00:00:24]} Nc6 {[%clk
00:03:00]} {[%emt 00:01:07]} 21. fxg6 {[%clk 00:02:53]} {[%emt 00:00:21]} hxg6
{[%clk 00:03:04]} {[%emt 00:00:01]} 22. Bd7 {[%clk 00:02:43]} {[%emt 00:00:15]}
Rxe2 {[%clk 00:02:43]} {[%emt 00:00:26]} 23. Bf4 {[%clk 00:02:39]} {[%emt
00:00:09]} Ne5 {[%clk 00:02:41]} {[%emt 00:00:08]} 24. Bxe5 {[%clk 00:00:46]}
{[%emt 00:01:58]} Rxe5 {[%clk 00:01:52]} {[%emt 00:00:53]} 25. Rc7 {[%clk
00:00:41]} {[%emt 00:00:10]} Re7 {[%clk 00:01:28]} {[%emt 00:00:29]} 26. Rfc1
{[%clk 00:00:38]} {[%emt 00:00:08]} Ba6 {[%clk 00:00:25]} {[%emt 00:01:08]} 27.
Rxa7 {[%clk 00:00:18]} {[%emt 00:00:26]} Bxd3 {[%clk 00:00:29]} {[%emt
00:00:01]} 28. Ra3 {[%clk 00:00:21]} {[%emt 00:00:01]} Rxd7 {[%clk 00:00:10]}
{[%emt 00:00:25]} 29. Rxd3 {[%clk 00:00:25]} {[%emt 00:00:01]} Ra8 {[%clk
00:00:12]} {[%emt 00:00:02]} 30. Rc2 {[%clk 00:00:26]} {[%emt 00:00:04]} Kg7
{[%clk 00:00:13]} {[%emt 00:00:04]} 31. Rcd2 {[%clk 00:00:30]} Ra4 {[%clk
00:00:17]} {[%emt 00:00:01]} 32. Rb2 {[%clk 00:00:32]} {[%emt 00:00:03]} b5
{[%clk 00:00:15]} {[%emt 00:00:07]} 33. Kf2 {[%clk 00:00:32]} {[%emt 00:00:04]}
Kf6 {[%clk 00:00:08]} {[%emt 00:00:13]} 34. Ke1 {[%clk 00:00:34]} {[%emt
00:00:03]} b4 {[%clk 00:00:07]} {[%emt 00:00:07]} 35. Kd1 {[%clk 00:00:32]}
{[%emt 00:00:07]} Ra3 {[%clk 00:00:07]} {[%emt 00:00:04]} 36. Rxa3 {[%clk
00:00:34]} {[%emt 00:00:03]} bxa3 {[%clk 00:00:11]} {[%emt 00:00:01]} 37. Rb3
{[%clk 00:00:38]} {[%emt 00:00:01]} Kg5 {[%clk 00:00:08]} {[%emt 00:00:08]} 38.
Rxa3 {[%clk 00:00:40]} {[%emt 00:00:04]} Kg4 {[%clk 00:00:12]} {[%emt
00:00:01]} 39. h4 {[%clk 00:00:42]} {[%emt 00:00:02]} f5 {[%clk 00:00:07]}
{[%emt 00:00:10]} 40. Kd2 {[%clk 00:00:40]} {[%emt 00:00:08]} d3 {[%clk
00:00:07]} {[%emt 00:00:05]} 41. Rxd3 {[%clk 00:00:41]} {[%emt 00:00:03]} Rxd3+
{[%clk 00:00:10]} {[%emt 00:00:02]} 42. Kxd3 {[%clk 00:00:45]} Kxg3 {[%clk
00:00:22]} {[%emt 00:00:23]} 43. Ke2 {[%emt 00:00:08]} Kg2 {[%clk 00:00:17]}
{[%emt 00:00:07]} 44. Ke3 {[%clk 00:00:40]} {[%emt 00:00:02]} Kg3 {[%clk
00:00:18]} {[%emt 00:00:04]} 45. Ke4 {[%clk 00:00:37]} {[%emt 00:00:07]}
1/2-1/2

[Event "Open NK Rapid 2025"]
[Site "Helmond, Netherlands"]
[Date "2025.05.03"]
[Round "4.1"]
[White "Fridman, Daniel"]
[Black "Grooten, Herman"]
[Result "1-0"]
[TimeControl "15+5"]
[WhiteFideId "11600454"]
[BlackFideId "1000330"]
[WhiteElo "2539"]
[BlackElo "2219"]

1. Nf3 {[%clk 00:15:08]} {[%emt 00:00:01]} Nf6 {[%clk 00:15:10]} {[%emt
00:00:01]} 2. c4 {[%clk 00:15:12]} {[%emt 00:00:01]} e6 {[%clk 00:15:11]}
{[%emt 00:00:04]} 3. g3 {[%clk 00:15:15]} {[%emt 00:00:02]} b6 {[%clk
00:15:13]} {[%emt 00:00:03]} 4. Bg2 {[%clk 00:15:18]} Bb7 {[%clk 00:15:17]}
{[%emt 00:00:02]} 5. O-O {[%clk 00:15:20]} {[%emt 00:00:03]} c5 {[%clk
00:15:20]} {[%emt 00:00:02]} 6. Nc3 {[%clk 00:15:22]} {[%emt 00:00:02]} Be7
{[%clk 00:15:23]} {[%emt 00:00:02]} 7. Re1 {[%clk 00:15:25]} {[%emt 00:00:02]}
a6 {[%clk 00:15:18]} {[%emt 00:00:11]} 8. e4 {[%clk 00:15:28]} {[%emt
00:00:01]} d6 {[%clk 00:15:21]} {[%emt 00:00:02]} 9. d4 {[%clk 00:15:31]}
{[%emt 00:00:02]} cxd4 {[%clk 00:15:24]} {[%emt 00:00:02]} 10. Nxd4 {[%clk
00:15:34]} {[%emt 00:00:02]} Qc7 {[%clk 00:15:25]} {[%emt 00:00:05]} 11. Be3
{[%clk 00:15:36]} {[%emt 00:00:02]} O-O {[%clk 00:15:25]} {[%emt 00:00:05]} 12.
Rc1 {[%clk 00:15:32]} {[%emt 00:00:09]} Nbd7 {[%clk 00:15:26]} {[%emt
00:00:04]} 13. f4 {[%clk 00:15:15]} {[%emt 00:00:22]} Rfe8 {[%clk 00:14:58]}
{[%emt 00:00:33]} 14. Bf2 {[%clk 00:14:59]} {[%emt 00:00:20]} h5 {[%clk
00:13:59]} {[%emt 00:01:05]} 15. h3 {[%clk 00:14:41]} {[%emt 00:00:23]} Bf8
{[%clk 00:12:37]} {[%emt 00:01:27]} 16. Bf3 {[%clk 00:14:07]} {[%emt 00:00:39]}
g6 {[%clk 00:12:32]} {[%emt 00:00:11]} 17. Kg2 {[%clk 00:11:20]} {[%emt
00:02:52]} Rac8 {[%clk 00:12:20]} {[%emt 00:00:17]} 18. b3 {[%clk 00:11:23]}
{[%emt 00:00:02]} Qb8 {[%clk 00:12:18]} {[%emt 00:00:07]} 19. e5 {[%clk
00:10:59]} {[%emt 00:00:28]} dxe5 {[%clk 00:10:57]} {[%emt 00:01:26]} 20. fxe5
{[%clk 00:11:01]} {[%emt 00:00:04]} Nh7 {[%clk 00:11:00]} {[%emt 00:00:02]} 21.
Bxb7 {[%clk 00:08:26]} {[%emt 00:02:40]} Qxb7+ {[%clk 00:11:03]} {[%emt
00:00:02]} 22. Qf3 {[%clk 00:08:29]} {[%emt 00:00:02]} Qc7 {[%clk 00:10:39]}
{[%emt 00:00:29]} 23. Qf4 {[%clk 00:08:31]} {[%emt 00:00:02]} Bg7 {[%clk
00:10:05]} {[%emt 00:00:40]} 24. Nf3 {[%clk 00:08:34]} {[%emt 00:00:02]} Nc5
{[%clk 00:09:50]} {[%emt 00:00:19]} 25. Bxc5 {[%clk 00:07:52]} {[%emt
00:00:48]} bxc5 {[%clk 00:09:53]} {[%emt 00:00:02]} 26. Ne4 {[%clk 00:07:40]}
{[%emt 00:00:16]} Red8 {[%clk 00:09:52]} {[%emt 00:00:06]} 27. Nd6 {[%clk
00:06:48]} {[%emt 00:00:57]} Bxe5 {[%clk 00:08:27]} {[%emt 00:01:31]} 28. Qxf7+
{[%clk 00:06:36]} {[%emt 00:00:16]} Qxf7 {[%clk 00:08:30]} {[%emt 00:00:03]} 29.
Nxf7 {[%clk 00:06:40]} Kxf7 {[%clk 00:08:12]} {[%emt 00:00:23]} 30. Nxe5+
{[%clk 00:06:43]} {[%emt 00:00:01]} Kg7 {[%clk 00:08:15]} {[%emt 00:00:03]} 31.
Rc2 {[%clk 00:06:39]} {[%emt 00:00:08]} Rd6 {[%clk 00:08:00]} {[%emt 00:00:21]}
32. Rf2 {[%clk 00:06:10]} {[%emt 00:00:33]} Rf8 {[%clk 00:07:51]} {[%emt
00:00:14]} 33. Ref1 {[%clk 00:06:13]} {[%emt 00:00:02]} Rf5 {[%clk 00:07:39]}
{[%emt 00:00:18]} 34. Nf3 {[%clk 00:05:36]} {[%emt 00:00:42]} g5 {[%clk
00:06:38]} {[%emt 00:01:06]} 35. Re2 {[%clk 00:05:15]} {[%emt 00:00:25]} g4
{[%clk 00:06:27]} {[%emt 00:00:16]} 36. hxg4 {[%clk 00:05:17]} {[%emt
00:00:04]} hxg4 {[%clk 00:06:31]} {[%emt 00:00:01]} 37. Nh2 {[%clk 00:04:11]}
{[%emt 00:01:10]} Rxf1 {[%clk 00:06:32]} {[%emt 00:00:04]} 38. Nxf1 {[%clk
00:04:10]} {[%emt 00:00:06]} Nf6 {[%clk 00:06:04]} {[%emt 00:00:33]} 39. Re5
{[%clk 00:04:11]} {[%emt 00:00:04]} Rd3 {[%clk 00:05:02]} {[%emt 00:01:08]} 40.
Kf2 {[%clk 00:03:40]} {[%emt 00:00:35]} Kf7 {[%clk 00:04:57]} {[%emt 00:00:09]}
41. Ke2 {[%clk 00:03:43]} {[%emt 00:00:03]} Rc3 {[%clk 00:04:48]} {[%emt
00:00:14]} 42. Ne3 {[%clk 00:03:32]} {[%emt 00:00:16]} Rc1 {[%clk 00:04:27]}
{[%emt 00:00:26]} 43. Rxc5 {[%clk 00:03:31]} {[%emt 00:00:06]} Ne4 {[%clk
00:04:21]} {[%emt 00:00:11]} 44. Rc7+ {[%clk 00:03:15]} {[%emt 00:00:22]} Kg6
{[%clk 00:04:13]} {[%emt 00:00:12]} 45. Nxg4 {[%clk 00:03:10]} {[%emt
00:00:10]} Nxg3+ {[%clk 00:03:49]} {[%emt 00:00:29]} 46. Kf3 {[%clk 00:02:50]}
{[%emt 00:00:25]} Rc3+ {[%clk 00:03:37]} {[%emt 00:00:17]} 47. Kf4 {[%clk
00:02:53]} {[%emt 00:00:02]} Ne2+ {[%clk 00:03:32]} {[%emt 00:00:11]} 48. Ke4
{[%clk 00:02:46]} {[%emt 00:00:11]} Rc2 {[%clk 00:03:22]} {[%emt 00:00:16]} 49.
Ne5+ {[%clk 00:02:42]} {[%emt 00:00:08]} Kf6 {[%clk 00:03:13]} {[%emt
00:00:14]} 50. Rf7+ {[%clk 00:02:38]} {[%emt 00:00:10]} Kg5 {[%clk 00:03:17]}
{[%emt 00:00:01]} 51. a4 {[%clk 00:02:27]} {[%emt 00:00:15]} Rb2 {[%clk
00:03:08]} {[%emt 00:00:14]} 52. Nf3+ {[%clk 00:01:41]} {[%emt 00:00:51]} Kg6
{[%clk 00:03:10]} {[%emt 00:00:04]} 53. Rb7 {[%clk 00:01:39]} {[%emt 00:00:07]}
a5 {[%clk 00:02:57]} {[%emt 00:00:17]} 54. c5 {[%clk 00:01:40]} {[%emt
00:00:05]} Kf6 {[%clk 00:02:25]} {[%emt 00:00:36]} 55. c6 {[%clk 00:01:31]}
{[%emt 00:00:14]} Nc3+ {[%clk 00:02:26]} {[%emt 00:00:12]} 56. Kd3 {[%clk
00:01:30]} Nd5 {[%clk 00:02:03]} {[%emt 00:00:27]} 57. Nd4 {[%clk 00:01:17]}
{[%emt 00:00:18]} e5 {[%clk 00:01:52]} {[%emt 00:00:17]} 58. Rb5 {[%clk
00:00:17]} {[%emt 00:01:05]} Nc7 {[%clk 00:01:31]} {[%emt 00:00:26]} 59. Rb7
{[%clk 00:00:21]} Nd5 {[%clk 00:01:17]} {[%emt 00:00:20]} 60. c7 {[%clk
00:00:25]} Nxc7 {[%clk 00:01:19]} {[%emt 00:00:02]} 61. Rxc7 {[%clk 00:00:29]}
{[%emt 00:00:01]} exd4 {[%clk 00:01:23]} {[%emt 00:00:01]} 62. Rb7 {[%clk
00:00:33]} Ke5 {[%clk 00:01:26]} {[%emt 00:00:02]} 63. Rb5+ {[%clk 00:00:37]}
{[%emt 00:00:01]} Kd6 {[%clk 00:01:29]} {[%emt 00:00:02]} 64. Kxd4 {[%clk
00:00:40]} {[%emt 00:00:02]} Rb1 {[%clk 00:01:33]} {[%emt 00:00:01]} 65. Kd3
{[%clk 00:00:22]} {[%emt 00:00:23]} Kc6 {[%clk 00:01:18]} {[%emt 00:00:20]} 66.
Kc2 {[%clk 00:00:25]} {[%emt 00:00:02]} Rh1 {[%clk 00:01:21]} {[%emt 00:00:02]}
67. Rxa5 {[%clk 00:00:29]} Rh2+ {[%emt 00:00:06]} 68. Kc3 {[%clk 00:00:33]}
Rh3+ {[%clk 00:01:23]} {[%emt 00:00:02]} 69. Kb4 {[%clk 00:00:37]} {[%emt
00:00:01]} Rh4+ {[%clk 00:01:27]} {[%emt 00:00:02]} 70. Ka3 {[%clk 00:00:41]}
Kb6 {[%clk 00:01:30]} {[%emt 00:00:01]} 71. Rb5+ {[%clk 00:00:43]} {[%emt
00:00:02]} Ka6 {[%clk 00:01:35]} {[%emt 00:00:01]} 72. Rb4 {[%clk 00:00:47]}
{[%emt 00:00:01]} Rh1 {[%clk 00:01:39]} 73. Rg4 {[%clk 00:00:50]} {[%emt
00:00:02]} Ka5 {[%clk 00:01:42]} {[%emt 00:00:01]} 74. Rd4 {[%clk 00:00:48]}
{[%emt 00:00:07]} Rh3 {[%clk 00:01:45]} {[%emt 00:00:02]} 75. Rd5+ {[%clk
00:00:50]} {[%emt 00:00:03]} Ka6 {[%clk 00:01:50]} {[%emt 00:00:01]} 76. a5
{[%clk 00:00:49]} {[%emt 00:00:06]} 1-0

[Event "Open NK Rapid 2025"]
[Site "Helmond, Netherlands"]
[Date "2025.05.03"]
[Round "4.2"]
[White "Kazarjan, Gachatur"]
[Black "Warmerdam, Max"]
[Result "0-1"]
[TimeControl "15+5"]
[WhiteFideId "1068750"]
[BlackFideId "1048104"]
[WhiteElo "2155"]
[BlackElo "2517"]

1. e4 {[%clk 00:15:08]} c5 {[%clk 00:15:08]} {[%emt 00:00:03]} 2. a3 {[%clk
00:15:12]} {[%emt 00:00:02]} g6 {[%clk 00:14:49]} {[%emt 00:00:24]} 3. Nc3
{[%clk 00:15:14]} {[%emt 00:00:02]} Bg7 {[%clk 00:14:52]} {[%emt 00:00:01]} 4.
Bc4 {[%clk 00:15:18]} {[%emt 00:00:02]} Nc6 {[%clk 00:14:52]} {[%emt 00:00:05]}
5. d3 {[%clk 00:15:21]} {[%emt 00:00:02]} e6 {[%clk 00:14:39]} {[%emt
00:00:18]} 6. Ba2 {[%clk 00:15:23]} {[%emt 00:00:03]} Rb8 {[%clk 00:13:55]}
{[%emt 00:00:49]} 7. h4 {[%clk 00:15:22]} {[%emt 00:00:05]} h5 {[%clk
00:13:17]} {[%emt 00:00:43]} 8. Bg5 {[%clk 00:15:00]} {[%emt 00:00:28]} Qb6
{[%clk 00:13:02]} {[%emt 00:00:20]} 9. Qc1 {[%clk 00:14:38]} {[%emt 00:00:27]}
d6 {[%clk 00:12:14]} {[%emt 00:00:53]} 10. Nf3 {[%clk 00:13:10]} {[%emt
00:01:32]} Bd7 {[%clk 00:11:51]} {[%emt 00:00:29]} 11. O-O {[%clk 00:12:49]}
{[%emt 00:00:26]} Nge7 {[%clk 00:10:29]} {[%emt 00:01:27]} 12. Rb1 {[%clk
00:10:46]} {[%emt 00:02:08]} Rc8 {[%clk 00:08:37]} {[%emt 00:01:57]} 13. Qf4
{[%clk 00:05:07]} {[%emt 00:05:44]} f6 {[%clk 00:07:00]} {[%emt 00:01:42]} 14.
Qxd6 {[%clk 00:04:42]} {[%emt 00:00:29]} fxg5 {[%clk 00:06:50]} {[%emt
00:00:16]} 15. Bxe6 {[%clk 00:04:39]} {[%emt 00:00:07]} Bxe6 {[%clk 00:05:57]}
{[%emt 00:00:59]} 16. Qxe6 {[%clk 00:04:41]} {[%emt 00:00:03]} Nd4 {[%clk
00:05:03]} {[%emt 00:00:59]} 17. Qxb6 {[%clk 00:03:49]} {[%emt 00:00:58]} axb6
{[%clk 00:04:46]} {[%emt 00:00:22]} 18. Nxg5 {[%clk 00:03:48]} {[%emt
00:00:05]} Nxc2 {[%clk 00:04:33]} {[%emt 00:00:18]} 19. Ne6 {[%clk 00:03:23]}
{[%emt 00:00:31]} Bf6 {[%clk 00:04:27]} {[%emt 00:00:10]} 20. g3 {[%clk
00:03:26]} {[%emt 00:00:02]} Kf7 {[%clk 00:03:47]} {[%emt 00:00:45]} 21. Nf4
{[%clk 00:03:07]} {[%emt 00:00:24]} Nd4 {[%clk 00:03:43]} {[%emt 00:00:09]} 22.
Kg2 {[%clk 00:02:54]} {[%emt 00:00:18]} Rhd8 {[%clk 00:03:42]} {[%emt
00:00:07]} 23. Rfe1 {[%clk 00:02:36]} {[%emt 00:00:23]} Ndc6 {[%clk 00:03:40]}
{[%emt 00:00:06]} 24. Ncd5 {[%clk 00:02:09]} {[%emt 00:00:32]} Nxd5 {[%clk
00:03:34]} {[%emt 00:00:12]} 25. Nxd5 {[%clk 00:02:09]} {[%emt 00:00:04]} b5
{[%clk 00:03:01]} {[%emt 00:00:38]} 26. f4 {[%clk 00:01:13]} {[%emt 00:01:01]}
Ne7 {[%clk 00:02:58]} {[%emt 00:00:08]} 27. Nxf6 {[%clk 00:00:52]} {[%emt
00:00:26]} Kxf6 {[%clk 00:03:02]} {[%emt 00:00:01]} 28. Red1 {[%clk 00:00:56]}
{[%emt 00:00:01]} Nc6 {[%clk 00:02:53]} {[%emt 00:00:14]} 29. Kf3 {[%clk
00:00:58]} {[%emt 00:00:03]} Nd4+ {[%clk 00:02:52]} {[%emt 00:00:06]} 30. Ke3
{[%clk 00:01:01]} {[%emt 00:00:02]} Nb3 {[%clk 00:02:42]} {[%emt 00:00:15]} 31.
Rf1 {[%clk 00:00:37]} {[%emt 00:00:28]} Rd7 {[%clk 00:02:42]} {[%emt 00:00:06]}
32. Rbd1 {[%clk 00:00:41]} Rcd8 {[%clk 00:02:40]} {[%emt 00:00:08]} 33. Ke2
{[%clk 00:00:45]} b6 {[%clk 00:02:09]} {[%emt 00:00:36]} 34. Rg1 {[%clk
00:00:37]} {[%emt 00:00:12]} Rd4 {[%clk 00:01:58]} {[%emt 00:00:15]} 35. Rgf1
{[%clk 00:00:22]} {[%emt 00:00:21]} Ra4 {[%clk 00:01:38]} {[%emt 00:00:25]} 36.
Ke3 {[%clk 00:00:19]} {[%emt 00:00:08]} Nd4 {[%clk 00:01:28]} {[%emt 00:00:15]}
37. Rf2 {[%clk 00:00:20]} {[%emt 00:00:04]} b4 {[%clk 00:01:29]} {[%emt
00:00:04]} 38. axb4 {[%clk 00:00:22]} {[%emt 00:00:03]} Rxb4 {[%clk 00:01:33]}
{[%emt 00:00:02]} 39. Ra1 {[%clk 00:00:23]} {[%emt 00:00:03]} Rb3 {[%clk
00:01:28]} {[%emt 00:00:11]} 40. Ra7 {[%clk 00:00:21]} {[%emt 00:00:06]} Nc6
{[%clk 00:01:28]} {[%emt 00:00:04]} 41. e5+ {[%clk 00:00:21]} {[%emt 00:00:06]}
Ke6 {[%clk 00:01:30]} {[%emt 00:00:03]} 42. Rg7 {[%clk 00:00:23]} {[%emt
00:00:03]} Rdxd3+ {[%clk 00:01:27]} {[%emt 00:00:08]} 43. Ke2 {[%clk 00:00:24]}
{[%emt 00:00:03]} Ne7 {[%clk 00:01:30]} {[%emt 00:00:03]} 0-1